Cogmind - Beta 11.1 @@@ ROGUE MODE // 2022.05.31 @ 22:42:56 Player: Demise Result: Destroyed by P-80 Master with Gamma Rifle Performance ------------- Evolutions (6) 3000 Regions Visited (25) 5000 Robots Destroyed (311) 1555 Value Destroyed (9579) 9579 Prototype IDs (83) 1660 Alien Tech Used (1) 200 Bonus (-40) -40 TOTAL SCORE: 20954 Bonus ------- High Alert Combat Kills 218 Follower Combat Kills 1602 Aligned with FarCom 300 Met Data Miner 300 Met Imprinter 300 Destroyed Z-Imprinter 1000 Built Enhanced Grunts 300 Friendly Fire -4060 Cogmind --------- Core Integrity 0/1150 Matter 0/300 Energy 84/100 System Corruption 32% Temperature Cool (0) Movement Core (50) Location -4/Factory Parts ------- > --- POWER (2) -------- (None) > --- PROPULSION (6) --- (None) > --- UTILITY (10) ----- Advanced Melee Analysis Suite Armor Integrity Analyzer > --- WEAPON (2) ------- (None) > --- INVENTORY (5) ---- Zionite Metafield Generator Long-range Tractor Beam Sensor Drone Bay (17/20) Chronowheel Force Lance Peak State ------------ > --- POWER ------------ Quantum Reactor > --- PROPULSION ------- Centrium Heavy Treads Centrium Wheel Centrium Wheel Centrium Wheel Centrium Wheel > --- UTILITY ---------- Huge Storage Unit Enhanced Optical Array Advanced Melee Analysis Suite Advanced Target Analyzer Armor Integrity Analyzer Centrium Medium Armor Plating Improved Powered Armor Medium Regenerative Plating Advanced Hacking Suite Improved System Shield > --- WEAPON ----------- KE Penetrator Advanced KE Penetrator > --- INVENTORY -------- Fusion Compressor Centrium Wheel Advanced Cooling System Zionite Biocell Zionite Biocell Zionite Metafield Generator Structural Scanner Advanced Terrain Scanner Surveybot 24 Chip Microactuators Experimental Reaction Control System Centrium Medium Armor Plating Improved Focal Shield Improved Hacking Suite Long-range Tractor Beam Sensor Drone Bay Chronowheel Railgun Advanced EMP Blaster Advanced EMP Blaster Mini Grenade Launcher Carbide Saw Phasing Sabre Force Lance [Rating: 138] Favorites ----------- Power Light Fission Core Engine Improved Deuterium Engine Power Core Light Fission Core Reactor Zionite Light DM Reactor Propulsion Compact Wheel Treads Centrium Heavy Treads Leg Enhanced Flexi-carbon Leg Wheel Compact Wheel Hover Unit Zionite Glidesys I Flight Unit Improved VTOL Module Utility Huge Storage Unit Device Sensor Drone Bay Storage Huge Storage Unit Processor Advanced Targeting Computer Hackware System Shield Protection Core Shielding Weapon Impact Mace Energy Gun Zionite Laser-M Energy Cannon Plasma Cannon Ballistic Gun Autogun Ballistic Cannon Advanced Assault Cannon Launcher Grenade Launcher Impact Weapon Impact Mace Slashing Weapon Carbide Saw Piercing Weapon Heavy Pick Special Melee Weapon Datajack Build | -11 -10 -10 -10 -9 -8 -7 -7 -7 -7 -7 -7 -7 -6 -6 -6 -6 -6 -6 -5 -5 -5 -5 -5 -5 -4 ------- Run | Scr Mat Min Exi Min Mat Fac Was Fac Low Low Zio Dee Pro Fac Was Fac Low Dat Pro Fac Ext Cet Arc Hub Fac Slots Evolved 12 | . . . . . 4 2 . . . . . . . 2 . . . . . 2 . . . . 2 Power . | . . . . . . . . . . . . . . . . . . . . . . . . . . Propulsion 4 | . . . . . . . . . . . . . . 2 . . . . . . . . . . 2 Utility 8 | . . . . . 4 2 . . . . . . . . . . . . . 2 . . . . . Weapon . | . . . . . . . . . . . . . . . . . . . . . . . . . . Parts Attached 580 | 8 31 3 4 11 74 55 7 23 4 12 5 40 4 63 5 42 4 2 9 9 57 15 17 30 46 Power 33 | 1 1 . . 1 2 2 . 4 . 1 . 3 . 3 . 5 . . . . 3 2 4 . 1 Engine 7 | 1 . . . 1 . . . 1 . 1 . . . 1 . 2 . . . . . . . . . Core 19 | . 1 . . . 2 2 . 3 . . . 1 . 1 . 3 . . . . 3 1 1 . 1 Reactor 7 | . . . . . . . . . . . . 2 . 1 . . . . . . . 1 3 . . Propulsion 79 | 2 6 . . 1 3 2 1 1 . . . 4 . 17 1 11 . . 3 3 8 1 . 2 13 Treads 2 | . . . . . . . . . . . . . . . . . . . . . . 1 . . 1 Leg 1 | . . . . . . . . . . . . . . . . . . . . . 1 . . . . Wheel 69 | 2 6 . . 1 2 2 1 1 . . . 1 . 15 1 11 . . 3 3 6 . . 2 12 Hover 6 | . . . . . . . . . . . . 3 . 2 . . . . . . 1 . . . . Flight 1 | . . . . . 1 . . . . . . . . . . . . . . . . . . . . Utility 273 | 3 17 3 1 3 35 31 5 8 4 8 5 21 4 21 3 21 4 2 6 5 24 5 7 11 16 Device 132 | 2 9 2 1 3 20 4 2 3 2 5 2 14 4 8 3 8 1 2 3 2 14 2 5 6 5 Storage 12 | 1 1 . . . 3 . . 1 . 1 . 1 . 1 . 1 . . . . . . 1 . 1 Processor 22 | . 1 1 . . 3 . . . . . 2 1 . 2 . 5 2 . . . 3 . . . 2 Hackware 24 | . . . . . . 12 . 1 . . . . . 5 . 2 . . . 2 . . . . 2 Protection 83 | . 6 . . . 9 15 3 3 2 2 1 5 . 5 . 5 1 . 3 1 7 3 1 5 6 Artifact . | . . . . . . . . . . . . . . . . . . . . . . . . . . Weapon 195 | 2 7 . 3 6 34 20 1 10 . 3 . 12 . 22 1 5 . . . 1 22 7 6 17 16 Energy Gun 14 | 1 2 . . . . . . . . . . 4 . 3 . 1 . . . . . 1 1 1 . Energy Cannon 13 | . . . . . 9 . . . . . . . . . . . . . . . 3 . 1 . . Ballistic Gun 64 | 1 4 . 1 4 21 7 . 1 . 1 . 2 . 2 . . . . . . 4 5 2 5 4 Ballistic Cannon 2 | . . . . . . . . 1 . . . . . . . . . . . . . 1 . . . Launcher 38 | . 1 . 1 2 3 4 1 2 . . . . . 5 1 . . . . . 7 . . 5 6 Special Weapon . | . . . . . . . . . . . . . . . . . . . . . . . . . . Impact Weapon 19 | . . . . . . 2 . 4 . 2 . 2 . 7 . 2 . . . . . . . . . Slashing Weapon 39 | . . . . . . 7 . 2 . . . 4 . 4 . 2 . . . 1 8 . 2 6 3 Piercing Weapon 4 | . . . . . . . . . . . . . . 1 . . . . . . . . . . 3 Special Melee Weapon 2 | . . . 1 . 1 . . . . . . . . . . . . . . . . . . . . Unidentified Prototypes 29 | . 1 1 . . 3 2 . 1 1 . . 10 . . . . . . . . 1 5 3 1 . Corrupted Parts 1 | . . . . . . . . . . . . . . . . . . . 1 . . . . . . System Corruption 3 | . . . . . . . . . . . . . . . . . . . 3 . . . . . . Parts Lost 94 | . 4 . . . 13 3 3 2 . 1 . 5 . 17 1 14 . . . . 3 . . . 28 Power 14 | . . . . . 2 . 1 . . . . 2 . 3 . 2 . . . . 1 . . . 3 Propulsion 24 | . 2 . . . . . 1 . . . . 1 . 5 . 6 . . . . 1 . . . 8 Utility 48 | . 2 . . . 8 3 1 2 . 1 . 2 . 8 1 6 . . . . 1 . . . 13 Weapon 8 | . . . . . 3 . . . . . . . . 1 . . . . . . . . . . 4 Highest Loss Streak 20 | . 2 . . . 6 1 3 1 . 1 . 5 . 9 1 5 . . . . 1 . . . 20 To Critical Strikes 1 | . . . . . . . . . . . . . . . . . . . . . . . . . 1 Average Slot Usage (%) 91 | . 99 100 100 88 87 91 81 88 89 85 92 91 92 82 92 85 99 100 100 99 99 93 93 94 82 Engine 2 | . 1 . . 10 3 . . 1 7 7 14 2 . 2 6 4 . . . . . . . . . Core 5 | . 11 14 14 3 5 6 2 5 . . . 2 . . 4 3 12 12 12 11 10 5 5 5 2 Reactor 1 | . . . . . . . . . . . . 8 14 7 . . . . . . . 4 5 5 3 Wheel 14 | . 27 28 28 17 8 6 6 7 7 7 7 5 7 13 25 20 25 25 25 22 21 14 11 11 18 Device 11 | . 10 11 12 14 17 . 2 6 7 19 22 22 28 7 12 6 14 12 12 17 11 5 6 3 2 Storage 7 | . 14 14 14 14 9 7 7 7 7 7 7 7 7 6 6 6 6 6 6 5 5 5 5 5 4 Processor 9 | . 1 2 1 . 9 7 7 2 . . 2 10 7 9 12 7 22 25 25 16 17 22 22 22 19 Hackware 11 | . . . . . . 27 30 24 29 15 10 . . 15 12 21 . . . 7 11 11 11 11 11 Protection 10 | . 2 . . . 17 16 12 17 14 13 14 14 14 4 . 3 5 6 5 6 8 10 9 12 7 Ballistic Gun 6 | . 24 28 19 27 15 6 2 . . . . 2 . . . . . . . . . 10 5 2 . Impact Weapon 4 | . . . . . . 5 . 8 14 13 14 6 7 5 . 5 6 6 6 5 . . . . . Slashing Weapon 2 | . . . . . . 1 1 3 . . . 1 7 3 . 3 6 6 6 5 8 . 4 8 5 Naked Turns . | . . . . . . . . . . . . . . . . . . . . . . . . . . Heaviest Build 147 | 11 54 65 52 60 112 112 98 110 120 125 131 132 128 128 116 118 119 118 118 123 119 138 136 147 141 Greatest Support 90 | 26 26 20 20 28 37 37 28 28 28 37 37 39 37 61 48 64 64 64 64 64 58 42 32 32 90 Greatest Overweight (x) 33 | . 2 3 2 2 33 3 3 3 4 4 4 8 3 8 2 31 1 1 1 1 2 4 4 5 6 Average Overweight (x) 2 | . 1 2 2 1 2 2 3 3 4 3 3 2 3 2 1 2 1 1 1 1 1 3 3 4 1 Largest Inventory Capacity 25 | 8 20 20 20 20 25 25 25 25 25 25 25 25 25 25 25 25 25 25 25 25 25 25 25 25 25 Average Capacity 23 | 7 19 20 20 20 22 25 25 25 25 25 25 25 25 25 25 25 25 25 25 25 25 25 25 25 23 Most Carried 25 | 8 20 20 20 20 25 25 25 25 25 25 25 25 25 25 25 25 25 25 25 25 25 25 25 25 25 Average Carried 23 | 4 18 19 19 19 21 24 21 22 25 24 24 23 25 23 24 24 24 25 24 24 24 24 24 24 22 Final Capacity 25 | 8 20 20 20 20 25 25 25 25 25 25 25 25 25 25 25 25 25 25 25 25 25 25 25 25 5 Final Carried 25 | 8 20 20 20 20 25 25 20 25 25 25 25 25 25 25 25 25 25 25 25 25 25 25 25 25 5 Class Distribution -------------------- 42% | Hacker-Mutant 28% | Mutant 15% | Scavenger-Mutant 7% | Hacker-Assassin Dominant Class ---------------- Mutant | -10/Materials Mutant | -10/Mines Scavenger-Mutant | -10/Exiles Mutant | -9/Mines Mutant | -8/Materials Hacker-Mutant | -7/Factory Hacker-Mutant | -7/Waste Hacker-Mutant | -7/Factory Hacker-Mutant | -7/Lower Caves Hacker-Mutant | -7/Lower Caves Hacker-Mutant | -7/Zion Mutant | -7/Deep Caves Mutant | -6/Proximity Caves Hacker-Mutant | -6/Factory Hacker-Mutant | -6/Waste Hacker-Mutant | -6/Factory Scavenger-Mutant | -6/Lower Caves Scavenger-Mutant | -6/Data Miner Scavenger-Mutant | -5/Proximity Caves Hacker-Assassin | -5/Factory Hacker-Assassin | -5/Extension Scavenger-Mutant | -5/Cetus Scavenger-Mutant | -5/Archives Scavenger-Mutant | -5/Hub_04(d) Hacker-Mutant | -4/Factory Resources | -11 -10 -10 -10 -9 -8 -7 -7 -7 -7 -7 -7 -7 -6 -6 -6 -6 -6 -6 -5 -5 -5 -5 -5 -5 -4 ----------- Run | Scr Mat Min Exi Min Mat Fac Was Fac Low Low Zio Dee Pro Fac Was Fac Low Dat Pro Fac Ext Cet Arc Hub Fac Matter Collected 9978 | 294 998 116 72 252 1603 723 419 315 176 325 28 500 80 776 . 754 159 . 52 204 768 342 254 606 162 Remotely 1241 | . . . . . 93 221 70 . 88 . . 175 . 161 . . . . . . 91 . . 253 89 Salvage Created 15082 | 164 1406 47 . 137 1845 1099 634 606 49 345 . 469 . 1403 . 1731 113 . . 273 1594 287 846 1354 680 Parts 607 | 13 80 11 . 9 85 39 . 25 . 3 . 21 . 59 . 49 . . . 3 63 10 50 61 26 Haulers Intercepted 15 | . 2 . . . 6 2 . 1 . . . . . . . 1 . . . . 2 . . 1 . Recyclers Shooed 17 | . 3 1 . . 1 2 . . . . . . . 2 . 3 . . . 1 1 . . 2 1 Parts Field Recycled . | . . . . . . . . . . . . . . . . . . . . . . . . . . Retrieved Matter . | . . . . . . . . . . . . . . . . . . . . . . . . . . Parts Self-Destructed 10 | . . . . . . . . . . 8 . . 2 . . . . . . . . . . . . Prevented 2 | . . . . . . . . . . . . . 2 . . . . . . . . . . . . Kills | -11 -10 -10 -10 -9 -8 -7 -7 -7 -7 -7 -7 -7 -6 -6 -6 -6 -6 -6 -5 -5 -5 -5 -5 -5 -4 ------- Run | Scr Mat Min Exi Min Mat Fac Was Fac Low Low Zio Dee Pro Fac Was Fac Low Dat Pro Fac Ext Cet Arc Hub Fac Combat Hostiles Destroyed 178 | . 25 . . 9 27 15 3 13 . 4 . 5 . 20 . 10 . . . . 12 5 2 14 14 Melee 30 | . . . . . . 5 . 4 . 3 . . . 7 . 6 . . . . 5 . . . . Guns 81 | . 23 . . 5 25 5 . . . . . 5 . 1 . . . . . . 1 5 2 6 3 AOE 46 | . 2 . . 4 2 3 3 3 . . . . . 8 . . . . . . 6 . . 4 11 Classes Destroyed 19 | 3 7 . . 1 2 1 1 . 1 1 . 1 . . . . . . . . 1 . . . . Worker 31 | 2 5 . . 1 2 1 . . . . . . . 5 . 6 . . . . 1 . . 5 3 Builder 23 | . 2 2 . 1 1 . . 1 . . . . . 4 . 7 . . . 1 . . . 1 3 Tunneler 4 | 2 . . . . . . . . . . . . . 1 . . . . . . 1 . . . . Hauler 15 | . 2 . . . 6 2 . 1 . . . . . . . 1 . . . . 2 . . 1 . Recycler 24 | 1 2 . . . 1 5 . . . . . . . 1 . 7 . . . 2 3 . . 2 . Mechanic 1 | . 1 . . . . . . . . . . . . . . . . . . . . . . . . Operator 16 | . 2 . . . 2 . . . . . . . . 2 . . . . . . 1 . 9 . . Watcher 16 | . 3 . . . 4 1 . . . . . . . 2 . 2 . . . . . . . 4 . Swarmer 28 | . 6 . . . 4 1 . 3 . . . . . 5 . . . . . . 3 2 . . 4 Grunt 84 | . 19 . . 2 17 8 . 4 . 3 . . . 10 . 2 . . . . 6 . . 6 7 Brawler 5 | . . . . . 1 . . 2 . . . . . . . 1 . . . . . . . . 1 Researcher 1 | . . . . . . . . . 1 . . . . . . . . . . . . . . . . Sentry 16 | . . . . . 5 . . . . . . . . 3 . 4 . . . . 2 . 2 . . Hunter 4 | . . . . . . . . . . . . . . . . . . . . . . . . 4 . Programmer 25 | . . . . . . 6 . 4 . 1 . . . 2 . 3 . . . . 1 1 . 5 2 Compactor 3 | . . . . . . . 3 . . . . . . . . . . . . . . . . . . Cetus Guard 2 | . . . . . . . . . . . . . . . . . . . . . . 2 . . . Enhanced Grunt 4 | . . . . . . . . . . . . . . . . . . . . . . . 4 . . Z-Technician 5 | . . . . . . . . . . . . 5 . . . . . . . . . . . . . Z-Light 2 | . . . . . . . . . . . . 2 . . . . . . . . . . . . . Samaritan 2 | . . . . . . . . . . 2 . . . . . . . . . . . . . . . Assembled 10 | . . . . 7 . . . . . . . 3 . . . . . . . . . . . . . Thug 2 | . . . . . . . . . . . . . . . . . . . . . 2 . . . . Savage 3 | . . . . . . . . . . 1 . . . . . . . . . . 1 1 . . . Guerrilla 2 | . . . . . . . . . . . . . . . . . . . . . 2 . . . . Best Kill Streak 20 | 2 7 1 . 3 4 3 2 4 . 3 . 5 . 7 . 4 . . . 2 5 3 4 20 15 Combat Bots Only 12 | . 7 . . 2 4 2 2 3 . 3 . 2 . 7 . 4 . . . . 4 3 1 12 11 Max Kills in Single Turn 8 | 1 1 1 . 3 2 2 1 2 1 1 . 1 . 2 . 1 . . . 1 5 2 1 3 8 Gunslinging 1 | . . . . . 1 . . . . . . . . . . . . . . . . . . . 1 Exploded 6 | . 1 . . 2 2 1 1 2 . . . . . 2 . . . . . . 3 . . 1 6 Melee 1 | . . . . . . 1 . 1 . 1 . . . 1 . 1 . . . . 1 . . . . Uniques/NPCs Destroyed . | . . . . . . . . . . . . . . . . . . . . . . . . . . Combat | -11 -10 -10 -10 -9 -8 -7 -7 -7 -7 -7 -7 -7 -6 -6 -6 -6 -6 -6 -5 -5 -5 -5 -5 -5 -4 -------- Run | Scr Mat Min Exi Min Mat Fac Was Fac Low Low Zio Dee Pro Fac Was Fac Low Dat Pro Fac Ext Cet Arc Hub Fac Damage Taken 17233 | . 703 . . 140 1989 746 376 838 . 511 . 798 . 2227 52 1834 . . . . 780 102 50 1579 4508 Core 2728 | . 115 . . 21 223 47 37 63 . 107 . 43 . 399 52 228 . . . . 100 . . 124 1169 Absorbed by Shields 993 | . 55 . . 51 472 . . . . . . 98 . 52 . . . . . . 265 . . . . Redirected to Shielding 293 | . . . . . 48 16 5 24 . 41 . 9 . 133 . . . . . . 17 . . . . Regen/Repaired (Parts) 1263 | . 16 . . . 208 253 . . . . . . . 79 . . . . . 162 . 120 23 221 181 Core Remaining (%) 59 | 100 . . . 45 59 . . . . . . . 57 . . . . . 20 . . . . 77 . Volleys Fired 623 | 14 118 11 . 17 174 34 27 4 . 8 . 39 . 50 12 9 . . . . 29 15 10 43 9 Largest 2 | 2 2 2 . 2 2 2 1 1 . 1 . 2 . 2 1 1 . . . . 2 2 2 2 2 Hottest 81 | 60 70 46 . 46 80 51 30 39 . 28 . 73 . 73 30 73 . . . . 81 68 68 68 68 Shots Fired 995 | 28 234 22 . 31 303 50 27 4 . 8 . 54 . 55 11 7 . . . . 45 30 19 57 10 Gun 840 | 28 232 22 . 28 272 43 . . . 8 . 54 . 29 . 7 . . . . 34 30 19 31 3 Cannon 28 | . . . . . 27 . . . . . . . . . . . . . . . 1 . . . . Launcher 127 | . 2 . . 3 4 7 27 4 . . . . . 26 11 . . . . . 10 . . 26 7 Special . | . . . . . . . . . . . . . . . . . . . . . . . . . . Kinetic 746 | 14 202 22 . 28 272 43 . . . 8 . 30 . 10 . . . . . . 34 30 19 31 3 Thermal 121 | 14 30 . . . 27 . . . . . . 24 . 19 . 7 . . . . . . . . . Explosive 67 | . 2 . . 3 2 2 27 . . . . . . 5 11 . . . . . . . . 8 7 Electromagnetic 61 | . . . . . 2 5 . 4 . . . . . 21 . . . . . . 11 . . 18 . Robot Hit Streak 21 | 6 10 5 . 6 21 13 16 . . 7 . 11 . 4 5 . . . . . 5 8 7 10 6 Robot Miss Streak 6 | 2 5 2 . 3 6 4 1 3 . 4 . 5 . 4 . . . . . . 2 3 3 4 1 Penetration Max 1 | . . . . . . . . . . . . . . . . . . . . . 1 1 . 1 . Secondary Targets 11 | . 1 . . . 6 . . . . . . . . . . . . . . . . 1 . 2 1 Max Gunslinging Chain 1 | . 1 . . . 1 . . . . . . . . . . . . . . . . 1 . 1 1 Shots Hit Robots 936 | 20 140 13 4 15 221 69 16 32 1 22 . 46 . 50 3 89 2 . . 3 68 19 52 36 15 Core Hits 527 | 7 55 3 . 21 78 37 11 14 . 15 . 40 . 41 3 18 . . . 1 57 10 27 49 40 Critical Kills 16 | . . . . 1 1 3 . 1 . . . . . 1 . 2 . . . . 1 1 1 3 1 Critical Parts Destroyed 43 | . . 1 . . . 6 . 6 . 4 . . . 6 . 12 . . . . 1 1 2 4 . Critical Strikes 90 | . 1 1 . 1 2 9 . 9 . 4 . . . 9 . 16 . . . . 13 2 12 7 4 Burn 1 | . 1 . . . . . . . . . . . . . . . . . . . . . . . . Destroy 19 | . . 1 . 1 2 . . . . . . . . . . . . . . . 2 2 3 7 1 Smash 42 | . . . . . . 9 . 7 . 4 . . . 8 . 14 . . . . . . . . . Sever 26 | . . . . . . . . 2 . . . . . . . 2 . . . . 11 . 9 . 2 Impale 2 | . . . . . . . . . . . . . . 1 . . . . . . . . . . 1 Melee Attacks 610 | . . . 4 . 1 60 . 67 8 24 8 18 . 70 . 168 4 . 6 32 48 . 41 33 18 Impact 329 | . . . . . . 42 . 53 8 24 8 4 . 45 . 120 . . 2 21 2 . . . . Slashing 265 | . . . . . . 18 . 14 . . . 14 . 24 . 43 4 . 4 11 46 . 41 33 13 Piercing 11 | . . . . . . . . . . . . . . 1 . 5 . . . . . . . . 5 Sneak Attacks 104 | . . . 4 . 1 7 . 2 1 2 . 5 . 9 . 25 . . . 3 7 . 30 3 5 Combat Hostiles 1 | . . . . . . . . . . . . . . . . . . . . . 1 . . . . Follow-up Attacks 38 | . . . . . . 3 . 6 . 3 . . . 6 . 11 . . . . 5 . . 1 3 Damage Inflicted 37281 | 194 2047 201 . 422 3662 2742 2328 1822 127 1074 . 1516 . 3220 1102 5059 107 . . 252 3038 487 2041 2830 3010 Guns 10403 | 194 1919 201 . 241 3282 686 . . . 185 . 1009 . 183 . . . . . . 755 487 346 821 94 Cannons 183 | . . . . . 173 . . . . . . . . . . . . . . . 10 . . . . Explosions 10815 | . 128 . . 181 195 317 2328 191 . . . . . 1166 1102 . . . . . 1028 . . 1725 2454 Melee 15860 | . . . . . . 1739 . 1631 127 889 . 507 . 1871 . 5059 107 . . 252 1245 . 1695 284 454 Ramming 20 | . . . . . 12 . . . . . . . . . . . . . . . . . . . 8 Kinetic 9448 | 59 1642 201 . 241 3282 686 . . . 185 . 500 . 149 . . . . . . 755 487 346 821 94 Thermal 2781 | 135 277 . . 47 173 29 . . . . . 509 . 34 . . . . . . 290 . . 69 1218 Explosive 5768 | . 128 . . 134 170 . 2328 . . . . . . 146 1102 . . . . . . . . 524 1236 Electromagnetic 3404 | . . . . . 25 288 . 191 . . . . . 1020 . . . . . . 748 . . 1132 . Impact 8568 | . . . . . . 1457 . 1255 127 889 . . . 1341 . 3206 . . . 252 41 . . . . Slashing 7026 | . . . . . . 282 . 376 . . . 507 . 478 . 1813 107 . . . 1204 . 1695 284 280 Piercing 266 | . . . . . . . . . . . . . . 52 . 40 . . . . . . . . 174 Highest Corruption 48 | . . . . . . 6 23 29 24 24 24 . . 11 24 48 47 35 38 . 7 7 7 7 32 Average Corruption 16 | . . . . . . 2 12 25 24 24 24 . . 11 19 27 38 35 35 . 4 7 4 2 12 Corruption Purged 21 | . . . . . . . 5 5 . . . . . . . 1 4 . . . . . 6 . . Corruption Blocked 15 | . . . . . . . . . 15 . . . . . . . . . . . . . . . . Effects 503 | . . . . . . 33 8 72 35 54 3 . . 27 9 124 17 2 22 . 39 15 12 15 16 Message Errors 126 | . . . . . . 12 2 14 10 6 . . . 9 1 33 6 . 5 . 11 6 1 5 5 Matter Fused 143 | . . . . . . 5 1 21 8 22 1 . . 11 . 37 5 1 6 . 7 7 2 4 5 Heat Flow Errors 53 | . . . . . . 4 1 10 7 4 . . . 2 1 10 2 . 4 . 4 1 . 2 1 Energy Discharges 69 | . . . . . . 4 1 8 4 11 1 . . 1 2 14 . 1 2 . 11 1 6 2 . Parts Rejected 4 | . . . . . . . . 1 . . . . . . 2 1 . . . . . . . . . Data Loss (minor) 55 | . . . . . . 7 1 6 4 6 . . . 4 2 15 3 . 3 . 1 . . 1 2 Data Loss (major) 26 | . . . . . . . 2 8 1 4 . . . . . 6 1 . 1 . 1 . 1 . 1 Misfires 3 | . . . . . . 1 . . . . . . . . . . . . . . . . 1 1 . Alerts 14 | . . . . . . . . 4 1 1 1 . . . . 3 . . 1 . 2 . . . 1 Misdirections 4 | . . . . . . . . . . . . . . . . 3 . . . . . . . . 1 Weapon Failures 6 | . . . . . . . . . . . . . . . 1 2 . . . . 2 . 1 . . Overload Shots . | . . . . . . . . . . . . . . . . . . . . . . . . . . Overflow Damage 4820 | . 35 . . . . 625 . 590 117 405 . 129 . 765 . 1648 50 . . 76 37 . 113 7 223 Projectiles . | . . . . . . . . . . . . . . . . . . . . . . . . . . Explosions 208 | . 35 . . . . 1 . . . . . . . . . . . . . . . . . 7 165 Melee 4612 | . . . . . . 624 . 590 117 405 . 129 . 765 . 1648 50 . . 76 37 . 113 . 58 Knockbacks 33 | . . . . . . 10 . 7 . 1 . . . 5 . 10 . . . . . . . . . Impact 32 | . . . . . . 10 . 7 . 1 . . . 5 . 9 . . . . . . . . . Kinetic . | . . . . . . . . . . . . . . . . . . . . . . . . . . Secondary 1 | . . . . . . . . . . . . . . . . 1 . . . . . . . . . Self-Inflicted Damage 357 | . . . . . 6 . 237 . . . . . . 33 . . . . . . 15 . . 15 51 Shots 13 | . . . . . . . 6 . . . . . . 3 . . . . . . 1 . . 2 1 Rammed 2 | . . . . . 1 . . . . . . . . . . . . . . . . . . . 1 Targets Rammed 2 | . . . . . 1 . . . . . . . . . . . . . . . . . . . 1 Kicked . | . . . . . . . . . . . . . . . . . . . . . . . . . . Crushed . | . . . . . . . . . . . . . . . . . . . . . . . . . . Highest Temperature 300 | 40 296 20 . 27 150 263 199 279 223 228 . 300 . 231 162 263 222 . 274 . 235 91 . 263 152 Average Temperature 67 | 24 52 8 . 10 31 90 112 116 92 84 . 84 . 97 101 81 104 . 112 . 78 68 . 76 40 Received Heat Transfer 4123 | . 288 . . 15 1063 135 . 135 . 252 . 228 . 579 . 351 . . . . 158 . . 144 775 Effects 3 | . . . . . . . . . . . . . . 3 . . . . . . . . . . . Interference 3 | . . . . . . . . . . . . . . 3 . . . . . . . . . . . Siege Activations . | . . . . . . . . . . . . . . . . . . . . . . . . . . Robots Corrupted 8 | . . . . . . 1 . . . . . . . 3 . . . . . . . . . 4 . Combat Hostiles 7 | . . . . . . . . . . . . . . 3 . . . . . . . . . 4 . Parts Fried 63 | . . . . . . 6 . 6 1 1 . . . 15 . 20 . . . 2 3 . . 9 . Impact Corruptions 127 | . . . . . . 17 . 18 3 22 . . . 23 . 40 . . . 3 1 . . . . Robots Melted . | . . . . . . . . . . . . . . . . . . . . . . . . . . Combat Hostiles . | . . . . . . . . . . . . . . . . . . . . . . . . . . Parts Melted 2 | . 1 . . . 1 . . . . . . . . . . . . . . . . . . . . Heat Transferred 3502 | 300 888 . . 100 322 50 . . . . . 555 . 37 . . . . . . 300 . . 100 850 Parts Sabotaged . | . . . . . . . . . . . . . . . . . . . . . . . . . . Parts Stolen . | . . . . . . . . . . . . . . . . . . . . . . . . . . Parts Stripped . | . . . . . . . . . . . . . . . . . . . . . . . . . . Power Chain Reactions 8 | . . . . . . 1 . . . . . . . 1 . . . . . . 5 . . 1 . Missiles Intercepted . | . . . . . . . . . . . . . . . . . . . . . . . . . . Alert | -11 -10 -10 -10 -9 -8 -7 -7 -7 -7 -7 -7 -7 -6 -6 -6 -6 -6 -6 -5 -5 -5 -5 -5 -5 -4 ------- Run | Scr Mat Min Exi Min Mat Fac Was Fac Low Low Zio Dee Pro Fac Was Fac Low Dat Pro Fac Ext Cet Arc Hub Fac Peak Influence 682 | 25 531 186 . 108 438 522 142 218 . . . . . 337 141 190 . . . 45 344 490 452 633 682 Initial 310 | . 16 186 . . . 186 112 97 . . . . . . 113 91 . . . . 17 152 196 88 310 Average 176 | 9 293 106 . 30 260 190 128 124 . . . . . 170 125 59 . . . 8 140 299 321 246 386 Maximum Alert Level 2 | . 2 . . . 2 2 . 1 . . . . . 1 . . . . . . 1 2 2 2 2 Low Security (%) 60 | 100 40 100 . 100 31 38 100 90 . . . . . 48 100 100 . . . 100 76 17 . 67 1 Level 1 31 | . 14 . . . 60 56 . 9 . . . . . 51 . . . . . . 23 68 78 4 76 Level 2 7 | . 44 . . . 8 4 . . . . . . . . . . . . . . . 14 20 27 22 Level 3 . | . . . . . . . . . . . . . . . . . . . . . . . . . . Level 4 . | . . . . . . . . . . . . . . . . . . . . . . . . . . Level 5 . | . . . . . . . . . . . . . . . . . . . . . . . . . . High Security . | . . . . . . . . . . . . . . . . . . . . . . . . . . Max Security . | . . . . . . . . . . . . . . . . . . . . . . . . . . Squads Dispatched 85 | . 7 . . 1 10 19 . 6 . . . . . 13 . 9 . . . 6 . . . 9 5 Investigation 31 | . 5 . . 1 7 7 . 2 . . . . . 5 . 1 . . . . . . . 2 1 Extermination 25 | . . . . . . 6 . 4 . . . . . 3 . 6 . . . 2 . . . 3 1 Reinforcement 15 | . 2 . . . 2 3 . . . . . . . 2 . 2 . . . . . . . 3 1 Assault . | . . . . . . . . . . . . . . . . . . . . . . . . . . Garrison 14 | . . . . . 1 3 . . . . . . . 3 . . . . . 4 . . . 1 2 Intercept . | . . . . . . . . . . . . . . . . . . . . . . . . . . Searches Triggered . | . . . . . . . . . . . . . . . . . . . . . . . . . . Construction Impeded 4 | . . . . . . 1 . . . . . . . 1 . . . . . . . . . 2 . Haulers Reinforced 5 | . . . . . . 2 . . . . . . . . . 1 . . . . . . . 1 1 Active Scanning Responses . | . . . . . . . . . . . . . . . . . . . . . . . . . . Cargo Convoy Interrupts . | . . . . . . . . . . . . . . . . . . . . . . . . . . Stealth | -11 -10 -10 -10 -9 -8 -7 -7 -7 -7 -7 -7 -7 -6 -6 -6 -6 -6 -6 -5 -5 -5 -5 -5 -5 -4 --------- Run | Scr Mat Min Exi Min Mat Fac Was Fac Low Low Zio Dee Pro Fac Was Fac Low Dat Pro Fac Ext Cet Arc Hub Fac Distress Signals 19 | . 4 . . . 6 2 . 1 . . . . . . . . . . . 2 . . . 3 1 Communications Jammed . | . . . . . . . . . . . . . . . . . . . . . . . . . . Distress Signals . | . . . . . . . . . . . . . . . . . . . . . . . . . . Times Spotted 341 | . 39 . . 8 46 32 5 20 . 4 . 5 . 31 5 18 . . . 1 36 16 19 23 33 Peak Tracking Total 15 | . 7 . . 2 7 4 2 4 . 3 . 3 . 6 6 5 . . . 1 9 6 1 5 15 Tactical Retreats 16 | . 1 . . 1 1 1 . . . . . . . 5 1 2 . . . . 1 . . 1 2 Traps | -11 -10 -10 -10 -9 -8 -7 -7 -7 -7 -7 -7 -7 -6 -6 -6 -6 -6 -6 -5 -5 -5 -5 -5 -5 -4 ------- Run | Scr Mat Min Exi Min Mat Fac Was Fac Low Low Zio Dee Pro Fac Was Fac Low Dat Pro Fac Ext Cet Arc Hub Fac Traps Triggered 23 | . 3 . . . 2 3 . 3 . . . . . 1 . 1 . . . 1 5 . . 2 2 Indirectly 1 | . . . . . . . . 1 . . . . . . . . . . . . . . . . . Trap Hack Attempts 25 | . . . . . 25 . . . . . . . . . . . . . . . . . . . . Triggered . | . . . . . . . . . . . . . . . . . . . . . . . . . . Disarmed . | . . . . . . . . . . . . . . . . . . . . . . . . . . Reprogrammed 4 | . . . . . 4 . . . . . . . . . . . . . . . . . . . . Reused 3 | . . . . . . . . . . . . 3 . . . . . . . . . . . . . Traps Extracted 3 | . . . . . 3 . . . . . . . . . . . . . . . . . . . . Installed 3 | . . . . . . . . . . . . 3 . . . . . . . . . . . . . Triggered 2 | . . . . . . . . . . . . . 1 1 . . . . . . . . . . . Most Traps Carried 3 | . . . . . 3 3 3 3 3 3 3 3 . . . . . . . . . . . . . Machines | -11 -10 -10 -10 -9 -8 -7 -7 -7 -7 -7 -7 -7 -6 -6 -6 -6 -6 -6 -5 -5 -5 -5 -5 -5 -4 ---------- Run | Scr Mat Min Exi Min Mat Fac Was Fac Low Low Zio Dee Pro Fac Was Fac Low Dat Pro Fac Ext Cet Arc Hub Fac Machines Disabled 47 | . . . . 2 5 9 . . . . . 2 . 4 . 2 . . . . 5 1 2 8 7 Max in Single Turn 6 | . . . . 2 1 1 . . . . . 1 . 3 . 1 . . . . 2 . 1 3 6 Garrison Access 3 | . . . . . . 1 . . . . . . . . . 1 . . . . . . . 1 . Machines Sabotaged . | . . . . . . . . . . . . . . . . . . . . . . . . . . Garrisons Compromised . | . . . . . . . . . . . . . . . . . . . . . . . . . . Overloaded Fab Kills . | . . . . . . . . . . . . . . . . . . . . . . . . . . Hacking | -11 -10 -10 -10 -9 -8 -7 -7 -7 -7 -7 -7 -7 -6 -6 -6 -6 -6 -6 -5 -5 -5 -5 -5 -5 -4 --------- Run | Scr Mat Min Exi Min Mat Fac Was Fac Low Low Zio Dee Pro Fac Was Fac Low Dat Pro Fac Ext Cet Arc Hub Fac Machines Accessed 107 | . 9 1 2 1 15 19 . 8 . 1 . . . 17 . 15 1 4 . 3 2 1 1 4 3 Terminals 52 | . 6 . . . 8 8 . 2 . . . . . 9 . 10 . . . 2 1 1 . 3 2 Fabricators 14 | . . . . . . 3 . 3 . . . . . 5 . 3 . . . . . . . . . Repair Stations 9 | . 1 . . . 2 2 . 2 . . . . . 1 . . . . . 1 . . . . . Recycling Units 11 | . 2 . . . 2 4 . . . . . . . . . 1 . . . . 1 . . . 1 Scanalyzers 4 | . . . . . 2 . . 1 . . . . . 1 . . . . . . . . . . . Garrison Access 6 | . . . . . 1 2 . . . . . . . 1 . 1 . . . . . . . 1 . Total Hacks 380 | . 37 1 2 1 56 58 . 25 . 1 . . . 79 . 52 1 30 . 6 4 4 1 13 9 Successful 226 | . 15 1 2 1 32 34 . 8 . 1 . . . 44 . 33 1 30 . 5 2 4 1 7 5 Failed 154 | . 22 . . . 24 24 . 17 . . . . . 35 . 19 . . . 1 2 . . 6 4 Catastrophic 19 | . 1 . . . 4 2 . 3 . . . . . 5 . 2 . . . . . . . 1 1 Database Lockouts . | . . . . . . . . . . . . . . . . . . . . . . . . . . Manual 226 | . 22 . 1 . 37 35 . 12 . . 4 . . 54 . 38 . . . 4 . 1 . 10 8 Terminals 200 | . 26 . . . 32 25 . 5 . . . . . 47 . 36 . . . 4 2 4 . 12 7 Fabricators 51 | . . . . . . 13 . 11 . . . . . 18 . 9 . . . . . . . . . Repair Stations 21 | . 4 . . . 4 4 . 2 . . . . . 5 . . . . . 2 . . . . . Recycling Units 37 | . 7 . . . 9 11 . . . . . . . . . 6 . . . . 2 . . . 2 Scanalyzers 19 | . . . . . 8 . . 7 . . . . . 4 . . . . . . . . . . . Garrison Access 15 | . . . . . 3 5 . . . . . . . 5 . 1 . . . . . . . 1 . Terminal Hacks 91 | . 6 1 2 1 4 9 . 1 . 1 . . . 13 . 11 1 30 . 1 1 4 1 3 1 Record 17 | . . . 1 . . . . . . . . . . . . . . 11 . . . 4 1 . . Part Schematic 19 | . . . . . . 2 . . . . . . . 3 . 2 . 11 . . 1 . . . . Robot Schematic 6 | . . . . . . . . . . . . . . . . 1 . 5 . . . . . . . Robot Analysis 5 | . 2 . . . 2 . . . . . . . . 1 . . . . . . . . . . . Prototype ID Bank 7 | . 3 . . . . . . . . . . . . 1 . . . 3 . . . . . . . Open Door 4 | . . 1 . 1 . . . . . 1 . . . . . . 1 . . . . . . . . Level Access Points 3 | . . . . . . 1 . . . . . . . 1 . . . . . . . . . 1 . Branch Access Points 4 | . . . . . . 1 . 1 . . . . . 1 . 1 . . . . . . . . . Terminal Index 8 | . 1 . . . 1 1 . . . . . . . 1 . 1 . . . 1 . . . 1 1 Fabricator Index 3 | . . . . . . 1 . . . . . . . 1 . 1 . . . . . . . . . Repair Station Index 1 | . . . . . . . . . . . . . . . . 1 . . . . . . . . . Unreport Threat 3 | . . . . . . 2 . . . . . . . 1 . . . . . . . . . . . Locate Traps 3 | . . . . . 1 . . . . . . . . . . 2 . . . . . . . . . Extermination Status 1 | . . . . . . 1 . . . . . . . . . . . . . . . . . . . Recall Investigation 2 | . . . . . . . . . . . . . . 2 . . . . . . . . . . . Recall Extermination 4 | . . . . . . . . . . . . . . 1 . 2 . . . . . . . 1 . EX-Prototype ID Bank 1 | . . . 1 . . . . . . . . . . . . . . . . . . . . . . Fabricator Hacks 16 | . . . . . . 6 . . . . . . . 7 . 3 . . . . . . . . . Load Schematic 7 | . . . . . . 3 . . . . . . . 3 . 1 . . . . . . . . . Build 9 | . . . . . . 3 . . . . . . . 4 . 2 . . . . . . . . . Repair Station Hacks 14 | . 2 . . . 4 4 . . . . . . . 2 . . . . . 2 . . . . . Scan Component 7 | . 1 . . . 2 2 . . . . . . . 1 . . . . . 1 . . . . . Repair 7 | . 1 . . . 2 2 . . . . . . . 1 . . . . . 1 . . . . . Recycling Unit Hacks 11 | . 2 . . . 2 4 . . . . . . . . . 1 . . . . 1 . . . 1 Retrieve Components 11 | . 2 . . . 2 4 . . . . . . . . . 1 . . . . 1 . . . 1 Scanalyzer 15 | . . . . . 8 . . 4 . . . . . 3 . . . . . . . . . . . Insert Component 8 | . . . . . 4 . . 2 . . . . . 2 . . . . . . . . . . . Analyze 7 | . . . . . 4 . . 2 . . . . . 1 . . . . . . . . . . . Garrison Access Hacks 3 | . . . . . . 1 . . . . . . . . . 1 . . . . . . . 1 . Seal Access 3 | . . . . . . 1 . . . . . . . . . 1 . . . . . . . 1 . Unauthorized Hacks 76 | . 5 . . . 14 10 . 3 . . . . . 19 . 17 . . . 2 . . . 3 3 Terminals 44 | . 2 . . . 8 4 . 1 . . . . . 11 . 11 . . . 2 . . . 3 2 Track 1 | . . . . . . . . . . . . . . . . . . . . . . . . 1 . Assimilate 8 | . . . . . 1 1 . 1 . . . . . 2 . 3 . . . . . . . . . Botnet 28 | . 2 . . . 5 2 . . . . . . . 8 . 7 . . . 2 . . . 1 1 Operators 7 | . . . . . 2 1 . . . . . . . 1 . 1 . . . . . . . 1 1 Fabricators 11 | . . . . . . 2 . 1 . . . . . 5 . 3 . . . . . . . . . Fabnet 9 | . . . . . . 2 . 1 . . . . . 4 . 2 . . . . . . . . . Haulers 2 | . . . . . . . . . . . . . . 1 . 1 . . . . . . . . . Repair Stations 2 | . . . . . . . . 1 . . . . . 1 . . . . . . . . . . . Mechanics 2 | . . . . . . . . 1 . . . . . 1 . . . . . . . . . . . Recycling Units 14 | . 3 . . . 4 3 . . . . . . . . . 3 . . . . . . . . 1 Reject 2 | . . . . . 1 . . . . . . . . . . 1 . . . . . . . . . Recyclers 6 | . 1 . . . 1 2 . . . . . . . . . 1 . . . . . . . . 1 Mask 3 | . . . . . 1 1 . . . . . . . . . 1 . . . . . . . . . Tunnel 3 | . 2 . . . 1 . . . . . . . . . . . . . . . . . . . . Scanalyzers . | . . . . . . . . . . . . . . . . . . . . . . . . . . Garrison Access 5 | . . . . . 2 1 . . . . . . . 2 . . . . . . . . . . . Reprogram 3 | . . . . . 1 1 . . . . . . . 1 . . . . . . . . . . . Watchers 2 | . . . . . 1 . . . . . . . . 1 . . . . . . . . . . . Data Cores Recovered . | . . . . . . . . . . . . . . . . . . . . . . . . . . Used . | . . . . . . . . . . . . . . . . . . . . . . . . . . Hacking Detections 74 | . 7 . . . 12 15 . 7 . . . . . 13 . 11 . . . 2 2 . . 3 2 Full Trace Events 21 | . 4 . . . 4 5 . . . . . . . 4 . 1 . . . . . . . 2 1 Feedback Events 1 | . . . . . . . . . . . . . . . . . . . . . . . . . 1 Corruption 1 | . . . . . . . . . . . . . . . . . . . . . . . . . 1 Feedback Blocked . | . . . . . . . . . . . . . . . . . . . . . . . . . . Robot Schematics Acquired 10 | . . . . . . . . . . . 4 . . . . 1 . 5 . . . . . . . Robots Built 3 | . . . . . . . . . . . . . . . . 3 . . . . . . . . . Authchips . | . . . . . . . . . . . . . . . . . . . . . . . . . . Time 272 | . . . . . . . . . . . . . . 222 . 50 . . . . . . . . . Total Robot Build Rating 15 | . . . . . . . . . . . . . . . . 15 . . . . . . . . . Part Schematics Acquired 39 | . . . . . 3 2 . 2 . . 14 . . 4 . 2 . 11 . . 1 . . . . Parts Built 8 | . . . . . . 3 . . . . . . . 4 . 1 . . . . . . . . . Authchips . | . . . . . . . . . . . . . . . . . . . . . . . . . . Time 527 | . . . . . . 189 . . . . . . . 254 . 84 . . . . . . . . . Total Part Build Rating 44 | . . . . . . 15 . . . . . . . 23 . 6 . . . . . . . . . Parts Repaired 7 | . 1 . . . 2 2 . . . . . . . 1 . . . . . 1 . . . . . Time 265 | . 26 . . . 70 72 . . . . . . . 35 . . . . . 62 . . . . . Parts Recycled . | . . . . . . . . . . . . . . . . . . . . . . . . . . Recycled Matter . | . . . . . . . . . . . . . . . . . . . . . . . . . . Retrieved Matter . | . . . . . . . . . . . . . . . . . . . . . . . . . . Retrieved Components 75 | . 16 . . . 20 33 . . . . . . . . . 3 . . . . . . . . 3 Parts Scanalyzed 6 | . . . . . 3 . . 2 . . . . . 1 . . . . . . . . . . . Part Schematics Acquired 6 | . . . . . 3 . . 2 . . . . . 1 . . . . . . . . . . . Parts Damaged . | . . . . . . . . . . . . . . . . . . . . . . . . . . Bothacking | -11 -10 -10 -10 -9 -8 -7 -7 -7 -7 -7 -7 -7 -6 -6 -6 -6 -6 -6 -5 -5 -5 -5 -5 -5 -4 ------------ Run | Scr Mat Min Exi Min Mat Fac Was Fac Low Low Zio Dee Pro Fac Was Fac Low Dat Pro Fac Ext Cet Arc Hub Fac Used RIF Installer . | . . . . . . . . . . . . . . . . . . . . . . . . . . Robots Hacked 20 | . . . 4 . . . . . . . . . 1 1 . 1 . . . 3 4 2 . 3 1 Non-combat 3 | . . . 3 . . . . . . . . . . . . . . . . . . . . . . Combat 17 | . . . 1 . . . . . . . . . 1 1 . 1 . . . 3 4 2 . 3 1 Robot Hacks Applied 4 | . . . 4 . . . . . . . . . . . . . . . . . . . . . . parse_system 4 | . . . 4 . . . . . . . . . . . . . . . . . . . . . . Relay Couplers Released . | . . . . . . . . . . . . . . . . . . . . . . . . . . Fabnet Peak Effective % 15 | . . . . . . . . . . . . . 9 9 9 9 9 9 15 15 15 15 15 15 6 Autooverrided 16 | . . . . . . . . . . . . . 1 1 . 1 . . . 3 4 2 . 3 1 Robots Rewired 25 | . . . . . . . . . . . . . . . . . . . . . 25 . . . . Allies Hacked 3 | . . . . . . 1 . . . . . . . . . . . . . 1 . . . 1 . Hacks Repelled . | . . . . . . . . . . . . . . . . . . . . . . . . . . Allies | -11 -10 -10 -10 -9 -8 -7 -7 -7 -7 -7 -7 -7 -6 -6 -6 -6 -6 -6 -5 -5 -5 -5 -5 -5 -4 -------- Run | Scr Mat Min Exi Min Mat Fac Was Fac Low Low Zio Dee Pro Fac Was Fac Low Dat Pro Fac Ext Cet Arc Hub Fac Total Allies 65 | . . . . 3 1 2 . 1 . . . . 1 3 . 6 . . . 4 33 7 . 3 1 Largest Group 9 | . . . . 3 2 2 . 1 1 1 . . 1 1 . 3 . . . 2 9 8 6 1 1 Highest-Rated Group 535 | . . . . 72 52 58 . 26 26 26 . . 29 32 . 87 . . . 103 344 535 511 29 10 Highest-Rated Ally 159 | . . . . 31 31 32 . 26 26 26 . . 29 32 . 32 . . . 54 159 153 96 29 10 Total Orders 24 | . . . . . 1 2 . . 1 2 . 2 3 . . 1 . 1 1 2 5 1 . 1 1 STAY 5 | . . . . . . . . . . . . . 1 . . 1 . . . 1 2 . . . . FOLLOW 4 | . . . . . . . . . . . . . 1 . . . . . . 1 2 . . . . RETURN 15 | . . . . . 1 2 . . 1 2 . 2 1 . . . . 1 1 . 1 1 . 1 1 Ally Attacks 297 | . . . . . 15 24 . . . . . . 7 4 . 16 . . . 14 129 51 35 2 . Total Damage 8212 | . . . . . 247 1364 . . . . . . 92 146 . 246 . . . 206 3222 1681 980 28 . Kills 54 | . . . . . 5 11 . . . . . . 1 2 . . . . . . 21 12 2 . . Allies Corrupted . | . . . . . . . . . . . . . . . . . . . . . . . . . . Allies Melted 1 | . . . . . . . . . . . . . . . . 1 . . . . . . . . . Intel | -11 -10 -10 -10 -9 -8 -7 -7 -7 -7 -7 -7 -7 -6 -6 -6 -6 -6 -6 -5 -5 -5 -5 -5 -5 -4 ------- Run | Scr Mat Min Exi Min Mat Fac Was Fac Low Low Zio Dee Pro Fac Was Fac Low Dat Pro Fac Ext Cet Arc Hub Fac Robot Analysis Total 5 | . 2 . . . 2 . . . . . . . . 1 . . . . . . . . . . . Derelict Logs Recovered 10 | . . 2 . 1 . . . . 1 1 . . . . . . 3 . 2 . . . . . . Drone Launches 18 | . . . . . 2 1 . . 2 3 . 1 1 . . . 1 . 1 1 1 1 . 2 1 Drone Recoveries 15 | . . . . . 1 2 . . 1 2 . 2 1 . . . . 1 1 . 1 1 . 1 1 Exploration | -11 -10 -10 -10 -9 -8 -7 -7 -7 -7 -7 -7 -7 -6 -6 -6 -6 -6 -6 -5 -5 -5 -5 -5 -5 -4 ------------- Run | Scr Mat Min Exi Min Mat Fac Was Fac Low Low Zio Dee Pro Fac Was Fac Low Dat Pro Fac Ext Cet Arc Hub Fac Turns Passed 29040 | 130 1489 711 423 992 3346 2752 267 1536 780 1209 1151 1777 475 2177 189 2601 424 97 598 1026 1897 574 728 1122 569 Spaces Moved 17023 | 78 970 610 373 705 1789 1497 142 862 445 732 766 1006 303 1231 135 1456 349 80 474 640 925 332 313 465 345 Core 67 | 1 . . . . 5 . . . . . . 2 . . . 11 . . . . . . . . 48 Treads . | . . . . . . . . . . . . . . . . . . . . . . . . . . Legs . | . . . . . . . . . . . . . . . . . . . . . . . . . . Wheels 16791 | 77 970 610 373 705 1784 1497 142 862 445 732 766 839 303 1231 135 1445 349 80 474 640 925 332 313 465 297 Hover 165 | . . . . . . . . . . . . 165 . . . . . . . . . . . . . Flight . | . . . . . . . . . . . . . . . . . . . . . . . . . . Fastest Speed 50 | 50 90 110 110 110 130 130 145 145 160 130 145 130 145 108 102 102 115 115 115 108 103 122 146 153 50 Average Speed 133 | 90 107 110 110 125 137 144 145 145 160 146 145 148 145 136 112 132 115 115 115 113 112 140 158 164 110 Slowest Speed 1700 | 100 120 125 110 130 1700 145 145 145 160 160 160 450 145 210 117 1600 115 115 115 115 124 163 163 170 170 Overloaded Moves . | . . . . . . . . . . . . . . . . . . . . . . . . . . Propulsion Burnouts . | . . . . . . . . . . . . . . . . . . . . . . . . . . Robots Hopped . | . . . . . . . . . . . . . . . . . . . . . . . . . . Cave-ins Triggered 2 | . . . . . . . . . . . . . . 1 . . . . . . . . . 1 . Exploration Rate (%) 63 | 5 99 97 71 99 91 37 83 29 63 67 85 80 45 28 98 38 73 74 63 22 89 71 89 48 15 Regions Visited 25 Branch Regions 15 Pre-discovered Areas 7 | . 2 2 1 . 1 . . . . . . . . . . . . 1 . . . . . . . Known Exits Taken 19 | . 1 1 1 1 1 . . 1 1 1 1 1 1 . . 1 1 1 1 1 1 1 . 1 . Unknown Exits Taken 2 | 1 . . . . . . . . . . . . . . . . . . . . . . 1 . . Scrap Searched 20 | . . 1 . 2 . . . . 2 4 4 . 1 . . . 3 . 3 . . . . . . Spaces Dug 239 | . . . . . 15 29 . 23 6 5 4 2 . 31 . 59 1 . 4 22 1 . . 30 7 Terrain Destroyed 670 | . 11 . . 10 28 32 123 23 6 5 4 6 . 67 54 62 1 . 4 22 38 2 6 70 96 Melee 181 | . . . . . . 21 . 23 6 5 4 . . 17 . 55 1 . 4 22 1 . . 19 3 Projectile 73 | . . . . . 19 . . . . . . 6 . 18 . 7 . . . . 8 2 6 6 1 AOE 416 | . 11 . . 10 9 11 123 . . . . . . 32 54 . . . . . 29 . . 45 92 Terrain Rammed . | . . . . . . . . . . . . . . . . . . . . . . . . . . Walls Destroyed . | . . . . . . . . . . . . . . . . . . . . . . . . . . Machines Disabled . | . . . . . . . . . . . . . . . . . . . . . . . . . . Actions | -11 -10 -10 -10 -9 -8 -7 -7 -7 -7 -7 -7 -7 -6 -6 -6 -6 -6 -6 -5 -5 -5 -5 -5 -5 -4 --------- Run | Scr Mat Min Exi Min Mat Fac Was Fac Low Low Zio Dee Pro Fac Was Fac Low Dat Pro Fac Ext Cet Arc Hub Fac Total 21534 | 110 1226 633 382 793 2387 1945 175 1041 498 830 801 1218 338 1571 161 1851 363 84 517 894 1643 412 451 712 498 Wait 2060 | . 53 1 . 42 235 235 . 76 41 48 10 45 30 137 . 170 4 3 25 196 455 31 47 134 42 Move 17000 | 77 969 609 372 704 1788 1497 141 861 444 731 765 1005 302 1231 134 1455 348 79 473 639 924 331 312 464 345 Hop . | . . . . . . . . . . . . . . . . . . . . . . . . . . Pick Up 235 | 9 30 3 1 7 44 21 . 9 . 4 6 31 . 12 3 7 1 . 1 6 13 5 5 7 10 Fast Attach 170 | 7 5 2 . 2 17 13 . 5 2 5 2 8 2 20 4 26 2 . 4 2 11 8 12 3 8 Attach 109 | . 7 . 1 1 19 11 4 8 . 3 1 10 . 15 . 5 . . . 3 3 1 1 1 15 Detach 68 | . 3 1 1 . 5 13 . 6 . 2 2 10 . 8 1 5 . . . 3 1 1 1 . 5 Swap 302 | 1 19 1 3 8 38 31 3 10 3 4 2 22 2 28 1 11 2 2 5 4 43 6 4 26 23 Drop 299 | 2 22 5 . 12 40 29 . 5 1 5 6 31 2 10 6 15 2 . 5 7 28 14 18 7 27 Fire 623 | 14 118 11 . 17 174 34 27 4 . 8 . 39 . 50 12 9 . . . . 29 15 10 43 9 Melee 526 | . . . 4 . 1 53 . 57 7 20 7 14 . 60 . 148 4 . 4 26 40 . 41 27 13 Ram 2 | . . . . . 1 . . . . . . . . . . . . . . . . . . . 1 Kick . | . . . . . . . . . . . . . . . . . . . . . . . . . . Crush . | . . . . . . . . . . . . . . . . . . . . . . . . . . Escape Stasis 40 | . . . . . . 8 . . . . . . . . . . . . . 8 24 . . . . Rewire 72 | . . . . . . . . . . . . . . . . . . . . . 72 . . . . Trap 28 | . . . . . 25 . . . . . . 3 . . . . . . . . . . . . . Miscellaneous . | . . . . . . . . . . . . . . . . . . . . . . . . . . Route ------- -11/Scrapyard -10/Materials (discovered 4 exits: *Mat x3 / *Min) -10/Mines (discovered 3 exits: *Mat x2 / *Exi) -10/Exiles (discovered 2 exits: *Min x2) -9/Mines (discovered 2 exits: *Mat x2) -8/Materials (discovered 2 exits: *Fac x2) -7/Factory (discovered 6 exits: Fac x4 / *Low x2) -7/Waste -7/Factory (discovered 3 exits: *Fac / *Low x2) -7/Lower Caves -7/Lower Caves (discovered 2 exits: *Fac / *Zio) -7/Zion (discovered 2 exits: *Dee / *Pro) -7/Deep Caves -6/Proximity Caves -6/Factory (discovered 6 exits: Fac x4 / Low x2) -6/Waste -6/Factory (discovered 5 exits: *Fac x3 / *Low x2) -6/Lower Caves (discovered 2 exits: Low / *Dat) -6/Data Miner -5/Proximity Caves -5/Factory -5/Extension (discovered 2 exits: *Fac / *Cet) -5/Cetus (discovered 2 exits: *Fac / *Arc) -5/Archives (discovered 3 exits: *Fac / *Hub x2) -5/Hub_04(d) (discovered 4 exits: *Fac x4) -4/Factory (discovered 1 exit: *Upp) History --------- Turn | Location | Event 13 | -11/Scrapyard | Discovered new exit (range 16) 131 | -11/Scrapyard | Entered Materials 305 | -10/Materials | Build established: Mutant 598 | -10/Materials | Discovered new exit (range 3) 633 | -10/Materials | Repaired Seismic Detector 842 | -10/Materials | Destroyed 7 combat bots 911 | -10/Materials | Discovered new exit (range 7) 1096 | -10/Materials | Discovered new exit (range 8) 1213 | -10/Materials | Discovered new exit (range 12) 1224 | -10/Materials | Identified exit to Materials 1295 | -10/Materials | Identified exit to Mines 1620 | -10/Materials | Entered Mines 1660 | -10/Mines | Learned location of Zion (-7) 1710 | -10/Mines | Learned location of Storage (-9) 2055 | -10/Mines | Discovered exit to Materials (range 5) 2186 | -10/Mines | Discovered exit to Materials (range 8) 2194 | -10/Mines | Found the Drone Emporium 2199 | -10/Mines | Found Prototype Device 2199 | -10/Mines | Identified Sensor Drone Bay 2326 | -10/Mines | Deemed a non-threat by the Exiles lab entrance 2326 | -10/Mines | Discovered new exit (range 5) 2330 | -10/Mines | Identified exit to Exiles 2331 | -10/Mines | Entered Exiles 2349 | -10/Exiles | Discovered new exit (range 14) 2362 | -10/Exiles | Identified exit to Mines 2394 | -10/Exiles | Met 8R-AWN 2414 | -10/Exiles | Met EX-HEX 2466 | -10/Exiles | Met EX-DEC 2498 | -10/Exiles | Build established: Scavenger-Mutant 2525 | -10/Exiles | Met EX-BIN 2542 | -10/Exiles | Aligned with FarCom system 2543 | -10/Exiles | Given EX-Vault access code 2568 | -10/Exiles | Opened EX-Vault 2575 | -10/Exiles | Found Chronowheel 2600 | -10/Exiles | Warned to stay clear of 0b10 Research branches 2692 | -10/Exiles | Discovered exit to Mines (range 11) 2754 | -10/Exiles | Left Exiles lab with Chronowheel 2754 | -10/Exiles | Entered Mines 2761 | -9/Mines | Met a Derelict bent on vengeance 2780 | -9/Mines | Assembled infested the area 2885 | -9/Mines | Build established: Mutant 2959 | -9/Mines | Discovered new exit (range 16) 2979 | -9/Mines | Met a Derelict shopkeep closing up shop 3124 | -9/Mines | Core integrity fell below 50% 3251 | -9/Mines | Received a Mining Laser from a helpful Derelict 3298 | -9/Mines | Identified exit to Materials 3746 | -9/Mines | Entered Materials 3746 | -8/Materials | Accompanied by 2 allies 3746 | -8/Materials | Evolved 4 slots: Utility x4 3751 | -8/Materials | Led the pair of lost Derelicts to an unsafe place 3882 | -8/Materials | Garrison activated, responded to threat 4489 | -8/Materials | Lost 3 parts (2u1w) 5190 | -8/Materials | Lost 6 parts (1p4u1w) 5252 | -8/Materials | Repaired Arm. Huge Wheel 5610 | -8/Materials | Discovered new exit (range 9) 5923 | -8/Materials | Discovered new exit (range 12) 6068 | -8/Materials | Repaired Core Shielding 6318 | -8/Materials | Lost 3 parts (1p1u1w) 7092 | -8/Materials | Identified exit to Factory 7092 | -8/Materials | Entered Factory 7092 | -7/Factory | Accompanied by 1 ally 7092 | -7/Factory | Evolved 2 slots: Utility x2 7367 | -7/Factory | Repaired Arm. Huge Wheel 7417 | -7/Factory | Build established: Hacker-Mutant 7433 | -7/Factory | Discovered new exit (range 8) 7453 | -7/Factory | Identified exit to Lower Caves 8351 | -7/Factory | Garrison activated, responded to threat 8559 | -7/Factory | Fabricated Imp. System Shield? 8681 | -7/Factory | Repaired Imp. Core Shielding 8871 | -7/Factory | Fabricated Imp. Hacking Suite (x1) 8995 | -7/Factory | Fabricated Imp. System Shield? 9816 | -7/Factory | Identified exit to Factory 9844 | -7/Factory | Sucked down chute 9844 | -7/Factory | Entered Waste 9859 | -7/Waste | EMP discharged 9859 | -7/Waste | System corruption reached 10% 9879 | -7/Waste | Spotted C-40 Crusher 9879 | -7/Waste | Spotted C-40 Crusher 9940 | -7/Waste | Destroyed C-40 Crusher 9940 | -7/Waste | Crushed by Compactor (1 part destroyed, 1 dropped) 9943 | -7/Waste | Crushed by Compactor (0 parts destroyed, 1 dropped) 9948 | -7/Waste | Destroyed C-40 Crusher 9959 | -7/Waste | EMP discharged 9962 | -7/Waste | Spotted C-40 Crusher 9974 | -7/Waste | Destroyed C-40 Crusher 9977 | -7/Waste | Lost 3 parts (1p1n1u) 9979 | -7/Waste | Spotted C-40 Crusher 10037 | -7/Waste | Spotted C-40 Crusher 10059 | -7/Waste | EMP discharged 10088 | -7/Waste | Discovered new exit (range 16) 10111 | -7/Waste | Entered Factory 10236 | -7/Factory | Discovered exit to Factory (range 4) 10294 | -7/Factory | Discovered exit to Lower Caves (range 2) 11647 | -7/Factory | Entered Lower Caves 11647 | -7/Lower Caves | Accompanied by 1 ally 11648 | -7/Lower Caves | Encountered a Warlord checkpoint 12183 | -7/Lower Caves | Learned location of 1 exit from Factory 12188 | -7/Lower Caves | Found Alien Artifact 12188 | -7/Lower Caves | Identified Core Expander 12188 | -7/Lower Caves | Installed Core Expander, added new Power slot 12311 | -7/Lower Caves | Discovered new exit (range 9) 12323 | -7/Lower Caves | Identified exit to Lower Caves 12427 | -7/Lower Caves | Entered another Lower Caves area 12427 | -7/Lower Caves | Accompanied by 2 allies 12647 | -7/Lower Caves | Learned Factory emergency access door positions 12803 | -7/Lower Caves | Discovered exit to Factory (range 4) 13359 | -7/Lower Caves | Discovered new exit (range 12) 13377 | -7/Lower Caves | Identified exit to Zion 13636 | -7/Lower Caves | Entered Zion 13636 | -7/Zion | Accompanied by 1 ally 13676 | -7/Zion | Acquired unknown access codes intercepted by a Zionite 13706 | -7/Zion | System corruption cleaned by Quarantine Array 13751 | -7/Zion | Discovered new exit (range 15) 13800 | -7/Zion | Identified exit to Proximity Caves 14155 | -7/Zion | Given the Hacking Drone Bay 14309 | -7/Zion | Rebuked by Imprinter 14670 | -7/Zion | Build established: Derelict-Mutant 14758 | -7/Zion | Opened final containment barrier to the Deep Caves 14780 | -7/Zion | Discovered new exit (range 3) 14780 | -7/Zion | Saw the warning signs outside the Deep Caves entrance 14787 | -7/Zion | Identified exit to Deep Caves 14787 | -7/Zion | Entered Deep Caves 14787 | -7/Deep Caves | Accompanied by 1 ally 15139 | -7/Deep Caves | Attacked by Z-Imprinter 15210 | -7/Deep Caves | Lost 5 parts (2p1n2u) 15292 | -7/Deep Caves | Found Prototype Device 15292 | -7/Deep Caves | Identified Zio. Metafield Generator 15333 | -7/Deep Caves | Found Prototype Protection 15334 | -7/Deep Caves | Identified Zio. Weapon Casing 15460 | -7/Deep Caves | Build established: Mutant 15713 | -7/Deep Caves | Z-Facility disabled 16139 | -7/Deep Caves | Discovered new exit (range 6) 16149 | -7/Deep Caves | Identified exit to Proximity Caves 16385 | -7/Deep Caves | Found Surveybot 24 Scanner 16404 | -7/Deep Caves | Found Surveybot 24 Chip 16564 | -7/Deep Caves | Entered Proximity Caves 16953 | -6/Proximity Caves | Discovered exit to Factory (range 12) 17031 | -6/Proximity Caves | Spotted B-75 Beast 17039 | -6/Proximity Caves | Entered Factory 17039 | -6/Factory | Evolved 2 slots: Propulsion x2 17040 | -6/Factory | Identified exit to Lower Caves 17125 | -6/Factory | Identified exit to Factory 17170 | -6/Factory | Fabricated Imp. Hacking Suite? 17361 | -6/Factory | Build established: Hacker-Mutant 17424 | -6/Factory | Fabricated Adv. Hacking Suite? 17855 | -6/Factory | Build established: Hacker-Assassin 18370 | -6/Factory | Destroyed 7 combat bots 18374 | -6/Factory | Lost 9 parts (2p3n4u) 18400 | -6/Factory | Garrison activated, responded to threat 18411 | -6/Factory | Build established: Hacker-Mutant 18539 | -6/Factory | Crushed by falling debris 18539 | -6/Factory | System corruption reached 10% 18570 | -6/Factory | Lost 3 parts (1n1u1w) 18836 | -6/Factory | Fabricated Enh. Gauss Cannon (x2) 19014 | -6/Factory | Repaired Impact Mace 19216 | -6/Factory | Sucked down chute 19216 | -6/Factory | Entered Waste 19227 | -6/Waste | Found Broken Enh. Force Lance 19231 | -6/Waste | EMP discharged 19286 | -6/Waste | Spotted C-40 Crusher 19287 | -6/Waste | Spotted C-40 Crusher 19307 | -6/Waste | Spotted C-40 Crusher 19323 | -6/Waste | Spotted C-40 Crusher 19331 | -6/Waste | EMP discharged 19339 | -6/Waste | Spotted C-40 Crusher 19340 | -6/Waste | Spotted C-40 Crusher 19358 | -6/Waste | Crushed by Compactor (1 part destroyed, 2 dropped) 19359 | -6/Waste | Core integrity fell below 50% 19389 | -6/Waste | Discovered new exit (range 13) 19405 | -6/Waste | Entered Factory 19600 | -6/Factory | Discovered exit to Factory (range 18) 19865 | -6/Factory | Fabricated Exp. Heat Sink? 20262 | -6/Factory | Fabricated G-50 Soldier? 20543 | -6/Factory | Discovered exit to Factory (range 10) 21211 | -6/Factory | Lost 4 parts (1p3n) 21262 | -6/Factory | Lost 3 parts (1n2u) 21663 | -6/Factory | Discovered exit to Factory (range 12) 21775 | -6/Factory | System corruption reached 30% 21831 | -6/Factory | Lost 5 parts (2n3u) 22006 | -6/Factory | Entered Lower Caves 22143 | -6/Lower Caves | Encountered a Warlord checkpoint 22205 | -6/Lower Caves | Learned Factory non-interactive machine intel 22207 | -6/Lower Caves | Identified exit to Lower Caves 22297 | -6/Lower Caves | Build established: Scavenger-Mutant 22408 | -6/Lower Caves | A Derelict revealed a hidden shortcut to meet someone special 22422 | -6/Lower Caves | Identified exit to Data Miner 22430 | -6/Lower Caves | Entered Data Miner 22430 | -6/Data Miner | Accompanied by 1 ally 22430 | -6/Data Miner | Discovered new exit (range 6) 22431 | -6/Data Miner | Identified exit to Proximity Caves 22445 | -6/Data Miner | Met Data Miner 22474 | -6/Data Miner | Learned location of Section 7 (-2) 22474 | -6/Data Miner | Acquired the access code to Warlord's prototype stash 22495 | -6/Data Miner | Received God Mode back door access code from Data Miner 22527 | -6/Data Miner | Entered Proximity Caves 23125 | -5/Proximity Caves | Entered Factory 23125 | -5/Factory | Evolved 2 slots: Utility x2 23126 | -5/Factory | Identified exit to Extension 23127 | -5/Factory | Loaded intel: 181 non-interactive machine locations 23376 | -5/Factory | Local machine network offline 23379 | -5/Factory | Repaired Centrium Wheel 23386 | -5/Factory | Garrison activated, responded to threat 23668 | -5/Factory | Build established: Assassin 23992 | -5/Factory | Build established: Hacker-Assassin 24126 | -5/Factory | Garrison activated, responded to threat 24151 | -5/Factory | Entered Extension 24646 | -5/Extension | Build established: Hacker-Mutant 24756 | -5/Extension | Rescued a captive Derelict 24756 | -5/Extension | Rescued a captive Derelict 24960 | -5/Extension | Build established: Hacker-Assassin 24986 | -5/Extension | Spotted B-75 Beast 25351 | -5/Extension | Disrupted transfer network 25451 | -5/Extension | Local machine network offline 25490 | -5/Extension | Spotted B-75 Beast 25516 | -5/Extension | Allies destroyed B-75 Beast 25749 | -5/Extension | Build established: Hacker-Mutant 25761 | -5/Extension | Rescued a captive Derelict 25781 | -5/Extension | Rescued A7 26029 | -5/Extension | Discovered new exit (range 10) 26030 | -5/Extension | Discovered new exit (range 6) 26041 | -5/Extension | Identified exit to Cetus 26048 | -5/Extension | Entered Cetus 26048 | -5/Cetus | Accompanied by 8 allies (A7) 26053 | -5/Cetus | Acquired a Cetus Manufacturing Module code from A7 26062 | -5/Cetus | Spotted Cetus Guard 26062 | -5/Cetus | Spotted Cetus Guard 26062 | -5/Cetus | Spotted Cetus Guard 26062 | -5/Cetus | Spotted Cetus Guard 26064 | -5/Cetus | Allies destroyed Cetus Guard 26067 | -5/Cetus | Allies destroyed Cetus Guard 26071 | -5/Cetus | Destroyed Cetus Guard 26077 | -5/Cetus | Extracted ID and sensor layout for unrecognized location from A7's data core 26082 | -5/Cetus | Found Prototype Protection 26082 | -5/Cetus | Identified Med. Regenerative Plating 26095 | -5/Cetus | Destroyed Cetus Guard 26203 | -5/Cetus | Discovered new exit (range 22) 26266 | -5/Cetus | Started Cetus Manufacturing Module 26291 | -5/Cetus | Manufactured an Enhanced Grunt 26316 | -5/Cetus | Manufactured an Enhanced Grunt 26341 | -5/Cetus | Manufactured an Enhanced Grunt 26347 | -5/Cetus | Build established: Scavenger-Mutant 26359 | -5/Cetus | Discovered new exit (range 21) 26366 | -5/Cetus | Manufactured an Enhanced Grunt 26391 | -5/Cetus | Manufactured an Enhanced Grunt 26430 | -5/Cetus | Identified exit to Archives 26531 | -5/Cetus | Cetus Manufacturing Module disabled 26622 | -5/Cetus | Entered Archives 26622 | -5/Archives | Accompanied by 6 allies 26665 | -5/Archives | Discovered new exit (range 21) 26693 | -5/Archives | Discovered new exit (range 19) 26695 | -5/Archives | Discovered new exit (range 22) 26739 | -5/Archives | Unable to access archive contents 26814 | -5/Archives | Found Prototype Device 26814 | -5/Archives | Identified Exp. Thermal Shield 27350 | -5/Archives | Entered Hub_04(d) 27767 | -5/Hub_04(d) | Found Imp. Powered Armor 28143 | -5/Hub_04(d) | Garrison activated, responded to threat 28228 | -5/Hub_04(d) | Destroyed 12 combat bots 28307 | -5/Hub_04(d) | Identified exit to Factory 28448 | -5/Hub_04(d) | Crushed by falling debris 28472 | -5/Hub_04(d) | Entered Factory 28472 | -4/Factory | Evolved 2 slots: Propulsion x2 28607 | -4/Factory | Discovered new exit (range 14) 28657 | -4/Factory | Identified exit to Upper Caves 28732 | -4/Factory | Lost 4 parts (2n2u) 28771 | -4/Factory | System corruption reached 10% 28915 | -4/Factory | Garrison activated, responded to threat 28936 | -4/Factory | Destroyed 11 combat bots 28945 | -4/Factory | Lost 3 parts (1p2u) 29007 | -4/Factory | Core integrity fell below 50% 29007 | -4/Factory | System corruption reached 30% 29014 | -4/Factory | Core integrity fell below 20% 29039 | -4/Factory | Lost 20 parts (1p6n9u4w) 29041 | -4/Factory | Destroyed by P-80 Master with Gamma Rifle Last Messages --------------- 29003_ Dropped Huge Storage Unit. 29004_ Slug penetrates Wall. 29004_ Dropped Centrium Medium Armor Plating. 29004_ Centrium Wheel destroyed. 29005_ System corrupted: Matter fused (-4). 29005_ Carbide Saw destroyed. 29005_ Penetrated by Slug. 29006_ Enh. Optical Array destroyed. 29006_ Adv. Target Analyzer destroyed. 29006_ Surveybot 24 Chip destroyed. 29006_ System corrupted by crushing effect (+5). 29006_ System corrupted by crushing effect (+3). 29006_ Knocked back. 29006_ Acquired Fusion Compressor. 29007_ Imp. Focal Shield destroyed. 29008_ Fusion Compressor destroyed. 29011_ Critical hit (Burn: +50). 29012_ W-44 Eye suffers critical hit (Destroy). 29013_ P-80 Master resets T-07 Excavator, system corruption cleaned. 29027_ System corrupted: IFF burst signal emitted. Map ----- +----------------------------------------------------+ | + ?????????????????????????????????????????????? | | # ?????????????????????????????????????????????? | | # ?????????????????????????????????????????????? | | # ?????????????????????????????????????????????? | | # ?????????????????????????????????????????????? | | ##?????????????????????????????????????????????? | | ##?????????????????????????????????????????????? | | # ##??## ????????????????????????????????????????? | | # ##??## ????????????????????????????????????????? | | # ######"????????????????????????????????????????? | | # ######"???????????Y????????????????????????????? | | # ## #""???????????????????????????????????????? | | " ##???????????????????????????? | | # ###+#######???????????????????????????? | | % # ##???????????????????????????? | | % # ##???????????????????????????? | | % # ##???????????????????????????? | | + ##???????????????????????????? | | # ##???????????????????????????? | | # ###########??????????????????? | | # ##+###########???????????##?????? | | # # u ;############"#?????? | | # # """ """ # #??????? | | "" # + """ """ # p ggg #??????? | | ""#### # """ """ # """"""""" #??????? | | # # u @ p # g b #??????? | | """""" ??? # # """ """ # """"""""" #??????? | | """""" ??? # # """ """ # #??????? | | """""" ? # #! """ """ # """"""""" #??????? | | ???""" # # #g #??????? | | ????"? # # """ """ #h""""""""" #??????? | | ????????? + * / """ """ # #??????? | | ?????????? # = !# """ """ #g""""""""" #??????? | | ?????????? # # # g h #??????? | | ?????????? # ###################/############# | | ?????????? # ![! gY | | ?????????? # w/]!! R | | ??????????## RR! | | ?????????? # ! ! | | ?????????? # w ^ | | ?????????? # ##########################+### | | ???????????# # ?????????????????????????????? | | ???????????# #???????????????????????????????? | | ???????????+ /???????????????????????????????? | | ???????????# #???????????????????????????????? | | ???????????# #???????????????????????????????? | | ???????????# #???????????????????????????????? | | ???????????# #???????????????????????????????? | | ???????????# #???????????????????????????????? | | ???????????# #???????????????????????????????? | +----------------------------------------------------+ Best States ------------- Heat Dissipation 71 Coolant Potential 80 Energy Generation 49 Energy Capacity 910 Matter Stores 300 Matter Capacity 300 Sight Range 22 Terrain Scan Range 24 Terrain Scan Density 2010 ECM Strength 2 Power Amplification 30 Additional Mass Support 9 Corruption Containment 8 Armor Coverage 850 Resistance: KI 25 Resistance: TH 10 Core Shielding 30 Weapon Shielding 100 Melee Speed Boost 20 Evasion (%) 50 Targeting Accuracy 8 Melee Accuracy 8 Launcher Accuracy 20 Target Analysis 8 Core Analysis 6 Armor Integrity Analysis 30 Recoil Reduction 2 Matter Filtering 30 Kinecelleration 30 Salvage Targeting 4 Offensive Hacking 40 Defensive Hacking 33 Trap Extractor Capacity 4 Item Schematics ----------------- Hacking Suite | -8/Materials | Scanalyzed Machine Analyzer | -8/Materials | Scanalyzed Lrn. Tractor Beam | -8/Materials | Scanalyzed Imp. System Shield | -7/Factory | Hacked Imp. Hacking Suite | -7/Factory | Hacked Adv. EMP Blaster | -7/Factory | Scanalyzed System Shield | -7/Factory | Scanalyzed Mak. System Restoration Module | -7/Zion | Archive System Guard | -7/Zion | Archive Greatsword | -7/Zion | Archive EM Disruption Field | -7/Zion | Archive Adv. ECM Suite | -7/Zion | Archive Thermic Laser | -7/Zion | Archive Adv. Terrain Scan Processor | -7/Zion | Archive Imp. Launcher Guidance Computer | -7/Zion | Archive Imp. Shock Absorption System | -7/Zion | Archive System Restoration Module | -7/Zion | Archive Dynamic Insulation System | -7/Zion | Archive Mak. Transmission Jammer | -7/Zion | Archive Hvy. Laser | -7/Zion | Archive Mak. Hover Unit | -7/Zion | Archive Exp. Heat Sink | -6/Factory | Scanalyzed Adv. Hacking Suite | -6/Factory | Hacked Adv. Plasma Cannon | -6/Factory | Hacked Adv. Terrain Scanner | -6/Factory | Hacked Adv. Melee Analysis Suite | -6/Factory | Hacked Nuclear Pulse Thruster | -6/Factory | Hacked Combat Drone Bay | -6/Data Miner | Free Lgt. Regenerative Plating | -6/Data Miner | Free Cld. Nuclear Pulse Thruster | -6/Data Miner | Free Imp. Matter Compressor | -6/Data Miner | Free Hvy. Proton Cannon | -6/Data Miner | Free Adv. Medium Treads | -6/Data Miner | Free Adv. Hardlight Generator | -6/Data Miner | Free Hyp. Mass Driver | -6/Data Miner | Free Mni. Drone Bay | -6/Data Miner | Free Phase Gun | -6/Data Miner | Free Hardcell Cannon | -6/Data Miner | Free Com. HERF Cannon | -5/Extension | Hacked Robot Schematics ------------------ M-28 Smith | -7/Zion | Archive G-47 Trooper | -7/Zion | Archive T-07 Excavator | -7/Zion | Archive H-88 Terminator | -7/Zion | Archive G-50 Soldier | -6/Factory | Hacked A-15 Conveyor | -6/Data Miner | Free R-10 Processor | -6/Data Miner | Free I-47 Archangel | -6/Data Miner | Free B-60 Warrior | -6/Data Miner | Free A-27 Freighter | -6/Data Miner | Free Fabricated ------------ Imp. System Shield | x1 | -7/Factory Imp. Hacking Suite | x1 | -7/Factory Imp. System Shield | x1 | -7/Factory Imp. Hacking Suite | x1 | -6/Factory Adv. Hacking Suite | x1 | -6/Factory Enh. Gauss Cannon | x2 | -6/Factory | Preloaded Exp. Heat Sink | x1 | -6/Factory G-50 Soldier | x3 | -6/Factory | Preloaded Alien Tech Used ----------------- Core Expander Achievements -------------- None Challenges ------------ None Game ------ Seed DisruptionBottomlessRipper Manual? 0 Play Time 05:56:06 Cumulative 544.9 hours Start 2022.05.31 @ 15:57:32 End 2022.05.31 @ 22:42:56 Sessions 3 Manual Loads 0 Difficulty Rogue Special Mode None Game No. 435 Rogue 435 Adventurer 0 Explorer 0 Win Type - Total 5 Types 4/0/0/1/0/0/0/0/0 Lore% 71 Gallery% 83 Achievement% 66 Wizard Run 0 Options --------- ASCII 0 Keyboard 1 Movement Numpad Keybinds 0 Fullscreen 1 Font 12/Terminus Map View 83x54 Tactical HUD 1 Map Filters NONE Filters NONE Steam 1 RUN: 5a35d16d-ef65-4364-a2cd-1e16d48d7116